bitfinex/quotes_BTCUSD_20240823
["timestamp","ask_amount","ask_price","bid_price","bid_amount"]
[1724376144730,0.001824,60943.0,60942.0,1.59852058]
[1724376146599,0.001824,60943.0,60942.0,1.59850828]
[1724376150200,0.001824,60943.0,60942.0,1.59854517]
[1724376150541,0.001824,60943.0,60942.0,1.67198196]
[1724376150741,0.001824,60943.0,60942.0,2.03688015]
[1724376150940,0.001824,60943.0,60942.0,1.96540261]
[1724376151145,0.001824,60943.0,60942.0,2.03594799]
[1724376151764,0.001824,60943.0,60942.0,2.12275736]
[1724376151966,0.001824,60943.0,60942.0,2.12567193]
[1724376152195,0.001824,60943.0,60942.0,2.12569264]
[1724376152367,0.001824,60943.0,60942.0,2.12569364]
[1724376152700,0.001824,60943.0,60942.0,2.45387364]
[1724376152903,0.000824,60943.0,60942.0,2.44587364]
[1724376153344,0.000824,60943.0,60942.0,2.38812949]
[1724376153556,0.000824,60943.0,60942.0,2.4458654]
[1724376154263,0.000824,60943.0,60942.0,2.1286854]
[1724376154384,0.000824,60943.0,60942.0,2.42168838]
[1724376154604,0.000824,60949.0,60948.0,1.477666]
[1724376154801,0.000824,60949.0,60948.0,1.67627247]
[1724376155036,0.000824,60949.0,60948.0,1.6733579]
[1724376155246,0.000824,60949.0,60948.0,1.67727247]
[1724376156300,0.000824,60949.0,60948.0,1.63732671]
[1724376156544,0.000824,60949.0,60948.0,1.63731519]
[1724376156731,0.000824,60949.0,60948.0,1.96546309]
[1724376156883,0.000824,60949.0,60948.0,2.03066296]
[1724376157322,0.000824,60949.0,60948.0,2.02774839]
[1724376157478,0.000824,60949.0,60948.0,2.03374839]
[1724376158097,0.000824,60949.0,60948.0,2.03470371]
[1724376158299,0.000824,60949.0,60948.0,2.03666296]
[1724376158918,0.000824,60949.0,60948.0,2.02766296]
[1724376159116,0.000824,60949.0,60948.0,2.02166296]
[1724376159323,0.000824,60949.0,60948.0,2.19575137]
[1724376159535,0.000824,60949.0,60948.0,2.20766594]
[1724376160202,0.000824,60949.0,60948.0,2.04366296]
[1724376160612,0.000824,60949.0,60948.0,2.03066296]
[1724376161029,0.000824,60949.0,60948.0,2.04466296]
[1724376161387,0.000824,60949.0,60948.0,2.03566296]
[1724376161819,0.000824,60949.0,60948.0,2.04866296]
[1724376162166,0.000824,60949.0,60948.0,2.03566296]
[1724376162518,0.000824,60949.0,60948.0,2.04866296]
[1724376163144,0.000824,60949.0,60948.0,2.03566296]
[1724376163493,0.000824,60949.0,60948.0,2.04966296]
[1724376163696,0.000824,60949.0,60948.0,2.03566296]
[1724376164136,0.000824,60949.0,60948.0,2.04966296]
[1724376164313,0.000824,60949.0,60948.0,2.03566296]
[1724376165068,0.000824,60949.0,60948.0,2.04866296]
[1724376165268,0.000824,60949.0,60948.0,2.21266594]
[1724376166663,0.000824,60949.0,60948.0,2.18508641]
[1724376166883,0.000824,60949.0,60948.0,2.21268531]
[1724376168239,0.000824,60949.0,60948.0,2.20977074]
[1724376168425,0.000824,60949.0,60948.0,2.21072606]
[1724376170815,0.000824,60949.0,60948.0,2.21268531]
[1724376172547,0.000824,60949.0,60948.0,2.21072606]
[1724376173141,0.000824,60949.0,60948.0,2.21268531]
[1724376175272,0.000824,60949.0,60948.0,2.22092531]
[1724376176332,0.000824,60949.0,60948.0,2.19041184]
[1724376176539,0.000824,60949.0,60948.0,2.21900571]
[1724376176745,0.000824,60949.0,60948.0,2.19335873]
[1724376176995,0.000824,60949.0,60948.0,2.22100746]
[1724376179240,0.000824,60949.0,60948.0,2.24667933]
[1724376181255,0.000824,60949.0,60948.0,2.25895847]
[1724376181669,0.000824,60949.0,60948.0,2.25699922]
[1724376182001,0.000824,60949.0,60948.0,2.22935586]
[1724376182212,0.075824,60949.0,60948.0,1.6204454]
[1724376182415,0.141924,60949.0,60948.0,1.60816626]
[1724376182617,0.141924,60949.0,60948.0,1.58416626]
[1724376182828,0.141924,60949.0,60948.0,0.90319838]
[1724376183412,0.141924,60949.0,60948.0,0.87554137]
[1724376184141,0.141924,60949.0,60948.0,1.20368937]
[1724376184554,0.141924,60949.0,60948.0,1.17668937]
[1724376184993,0.141924,60949.0,60948.0,1.17768937]
[1724376185191,0.141924,60949.0,60948.0,1.17668937]
[1724376185545,0.141924,60949.0,60948.0,1.18068937]
[1724376185744,0.141924,60949.0,60948.0,1.162758]
[1724376185943,0.141924,60949.0,60948.0,1.18068925]
[1724376186119,0.141924,60949.0,60948.0,1.17768925]
[1724376186297,0.142924,60949.0,60948.0,1.17768925]
[1724376187554,0.142924,60949.0,60948.0,1.17668925]
[1724376187757,0.142924,60949.0,60948.0,1.17868925]
[1724376188734,0.142924,60949.0,60948.0,1.160758]
[1724376188934,0.142924,60949.0,60948.0,1.17868945]
[1724376190243,0.142924,60949.0,60948.0,4.160758]
[1724376190808,0.30692698,60949.0,60948.0,3.502462]
[1724376191088,0.30692698,60949.0,60948.0,3.01024]
[1724376191633,0.35611462,60949.0,60948.0,3.01024]
[1724376192114,0.35511462,60949.0,60948.0,3.01024]
[1724376192299,0.30592698,60949.0,60948.0,3.01024]
[1724376192503,0.30692698,60949.0,60948.0,3.01024]
[1724376193111,0.30692698,60949.0,60948.0,3.00824]
[1724376194349,0.30592698,60949.0,60948.0,3.00824]
[1724376194759,0.30892698,60949.0,60948.0,3.00824]
[1724376200705,0.38367611,60949.0,60948.0,3.00824]
[1724376200908,0.51508934,60949.0,60948.0,3.00824]
[1724376201110,0.41675716,60949.0,60948.0,3.00824]
[1724376201705,0.41375716,60949.0,60948.0,3.00824]
[1724376201914,0.41375716,60949.0,60948.0,2.25803622]
[1724376202117,0.58726198,60949.0,60948.0,1.87934664]
[1724376202247,0.61175908,60949.0,60948.0,1.85960536]
[1724376202428,0.60975908,60949.0,60948.0,1.85860536]
[1724376202644,0.51163594,60949.0,60948.0,1.85860536]
[1724376203267,0.60971758,60949.0,60948.0,1.85860536]
[1724376203468,0.61271758,60949.0,60948.0,1.85960536]
[1724376203877,0.60971758,60949.0,60948.0,1.85860536]
[1724376204076,0.61471758,60949.0,60948.0,1.85960536]
[1724376204328,0.52963594,60949.0,60948.0,1.86060536]
[1724376205293,0.59014003,60949.0,60948.0,1.85960536]
[1724376205728,0.60314003,60949.0,60948.0,1.86060536]
[1724376206005,0.60314003,60949.0,60948.0,1.64580352]
[1724376206210,0.52963594,60949.0,60948.0,1.64580352]
[1724376206637,1.27499294,60949.0,60948.0,0.41188912]
[1724376206792,1.09523158,60949.0,60948.0,0.31856669]
[1724376207370,0.99714994,60949.0,60948.0,0.31856669]
[1724376207575,0.98414994,60949.0,60948.0,0.31756669]
[1724376207997,0.98614994,60949.0,60948.0,0.31756669]
[1724376208420,1.08705608,60949.0,60948.0,0.31856669]
[1724376208835,0.4308633,60949.0,60948.0,0.31856669]
[1724376209046,0.41121833,60949.0,60948.0,0.31856669]
[1724376209262,0.48462425,60949.0,60948.0,0.31856669]
[1724376209461,0.41121833,60949.0,60948.0,0.31856669]
[1724376211397,1.66241833,60949.0,60948.0,0.31856669]
[1724376211623,1.82639711,60949.0,60948.0,0.31856669]
[1724376213253,1.87530107,60949.0,60948.0,0.31856669]
[1724376214327,1.82639711,60949.0,60948.0,0.31856669]
[1724376215591,1.82600214,60949.0,60948.0,0.31856669]
[1724376215807,1.66202336,60949.0,60948.0,0.31856669]
[1724376216833,1.73542928,60949.0,60948.0,0.31856669]
[1724376217233,1.66202336,60949.0,60948.0,0.31856669]
[1724376217411,1.73536815,60949.0,60948.0,0.31856669]
[1724376220839,1.71236815,60949.0,60948.0,0.31856669]
[1724376221218,1.71239186,60949.0,60948.0,0.31856669]
[1724376221426,1.87637064,60949.0,60948.0,0.31856669]
[1724376222215,1.80300214,60949.0,60948.0,0.31856669]
[1724376223478,1.90082681,60949.0,60948.0,0.31856669]
[1724376223684,1.90082681,60949.0,60948.0,0.002]
[1724376224205,1.80300214,60949.0,60948.0,0.002]
[1724376224434,1.82600214,60949.0,60948.0,0.002]
[1724376225225,1.94828298,60949.0,60948.0,0.002]
[1724376225651,1.82600214,60949.0,60948.0,0.002]
[1724376226011,0.594387,60943.0,60942.0,0.0009064]
[1724376226339,0.95905133,60943.0,60942.0,0.0009064]
[1724376226539,1.28782615,60943.0,60942.0,0.0009064]
[1724376227095,1.28782615,60943.0,60942.0,0.0019064]
[1724376227329,1.30182615,60943.0,60942.0,0.0019064]
[1724376227561,1.47980493,60943.0,60942.0,0.0029064]
[1724376228492,1.46580493,60943.0,60942.0,0.0019064]
[1724376228853,1.47980493,60943.0,60942.0,0.0019064]
[1724376229060,0.97354293,60943.0,60942.0,0.0009064]
[1724376229268,0.69430298,60943.0,60942.0,0.0009064]
[1724376229523,0.90902122,60943.0,60942.0,0.0009064]
[1724376229832,0.88452484,60943.0,60942.0,0.0009064]
[1724376230074,0.80056415,60943.0,60942.0,0.0009064]
[1724376230320,0.88452437,60943.0,60942.0,0.0009064]
[1724376230539,1.059,60943.0,60942.0,0.0009064]
[1724376230767,1.073,60943.0,60942.0,0.0009064]
[1724376231389,0.95054293,60943.0,60942.0,0.0009064]
[1724376231598,1.07303548,60943.0,60942.0,0.0009064]
[1724376231809,0.96454293,60943.0,60942.0,0.0009064]
[1724376232026,0.95054293,60943.0,60942.0,0.0009064]
[1724376232234,1.07303548,60943.0,60942.0,0.0009064]
[1724376232487,0.95054293,60943.0,60942.0,0.0009064]
[1724376232681,0.96454293,60943.0,60942.0,0.0009064]
[1724376233869,0.98754293,60943.0,60942.0,0.0009064]
[1724376235242,0.96024293,60943.0,60942.0,0.0009064]
[1724376235522,0.93724293,60943.0,60942.0,0.0009064]
[1724376237349,1.08412315,60943.0,60942.0,0.0009064]
[1724376239016,1.11142315,60943.0,60942.0,0.0009064]
[1724376239222,1.15162993,60943.0,60942.0,0.0009064]
[1724376239441,1.15162993,60943.0,60929.0,0.1424]
[1724376239442,0.001,60930.0,60929.0,0.05953867]
[1724376239647,0.001,60930.0,60921.0,0.065787]
[1724376239648,0.001,60924.0,60921.0,0.065787]
[1724376239856,0.24226415,60922.0,60912.0,0.0009053]
[1724376240123,0.24226415,60917.0,60912.0,0.0009053]
[1724376240342,0.34226415,60917.0,60912.0,0.0666923]
[1724376240547,0.34226415,60917.0,60912.0,0.0009053]
[1724376241396,0.41592505,60917.0,60912.0,0.0009053]
[1724376241607,0.34226415,60917.0,60912.0,0.0009053]
[1724376242457,0.36926415,60917.0,60912.0,0.0009053]
[1724376242682,0.36926415,60917.0,60916.0,0.1402064]
[1724376243095,0.29100298,60917.0,60916.0,0.1402064]
[1724376243314,0.34013937,60917.0,60916.0,0.1402064]
[1724376243543,0.29100298,60917.0,60916.0,0.1402064]
[1724376243990,0.33238301,60917.0,60916.0,0.0762064]
[1724376244404,0.40809825,60917.0,60916.0,0.0762064]
[1724376244609,0.33538301,60917.0,60916.0,0.0762064]
[1724376245250,0.33238301,60917.0,60916.0,0.0762064]
[1724376245478,0.43059754,60917.0,60916.0,0.0762064]
[1724376245681,0.33238301,60917.0,60916.0,0.0762064]
[1724376245889,0.29581495,60917.0,60916.0,0.0762064]
[1724376246532,0.39415858,60917.0,60916.0,0.0762064]
[1724376247383,0.39415551,60917.0,60916.0,0.0762064]
[1724376249153,0.38934354,60917.0,60916.0,0.0762064]
[1724376249363,0.39234354,60917.0,60916.0,0.1415064]
[1724376249570,0.41692868,60917.0,60916.0,0.1415064]
[1724376249790,0.41392868,60917.0,60916.0,0.1415064]
[1724376252106,0.41692868,60917.0,60916.0,0.1415064]
[1724376253020,0.41688482,60917.0,60916.0,0.1415064]
[1724376253418,0.29400298,60917.0,60916.0,0.1415064]
[1724376253855,0.39204345,60917.0,60916.0,0.1415064]
[1724376254289,0.38904345,60917.0,60916.0,0.1415064]
[1724376255354,0.29100298,60917.0,60916.0,0.1415064]
[1724376255598,0.36436584,60917.0,60916.0,0.1415064]
[1724376256016,0.29100298,60917.0,60916.0,0.1415064]
[1724376259229,0.33991831,60917.0,60916.0,0.1415064]
[1724376259517,0.29100298,60917.0,60916.0,0.1415064]
[1724376261350,0.33991941,60917.0,60916.0,0.1415064]
[1724376264592,0.29100298,60917.0,60916.0,0.1415064]
[1724376264912,0.33997398,60917.0,60916.0,0.1415064]
[1724376265119,0.33997753,60917.0,60916.0,0.1415064]
[1724376267394,0.29100298,60917.0,60916.0,0.1415064]
[1724376268547,0.36938953,60917.0,60916.0,0.1415064]
[1724376269376,0.44376056,60917.0,60916.0,0.1415064]
[1724376269572,0.44576056,60917.0,60916.0,0.1415064]
[1724376270206,0.44551063,60917.0,60916.0,0.1415064]
[1724376270529,0.44251063,60917.0,60916.0,0.1415064]
[1724376272116,0.44265182,60917.0,60916.0,0.1415064]
[1724376273824,0.51076036,60917.0,60916.0,0.1415064]
[1724376274078,0.43924814,60917.0,60916.0,0.1415064]
[1724376274497,0.29075305,60917.0,60916.0,0.1415064]
[1724376274689,0.3691396,60917.0,60916.0,0.1415064]
[1724376275838,0.3701396,60917.0,60916.0,0.1415064]
[1724376277239,0.46815589,60917.0,60916.0,0.1415064]
[1724376277692,0.46715589,60917.0,60916.0,0.1415064]
[1724376279097,0.46716841,60917.0,60916.0,0.1415064]
[1724376279299,0.3701396,60917.0,60916.0,0.1415064]
[1724376279500,0.3721396,60917.0,60916.0,0.1415064]
[1724376280302,0.49465997,60917.0,60916.0,0.1415064]
[1724376281733,0.52399089,60917.0,60916.0,0.1415064]
[1724376282315,0.40147052,60917.0,60916.0,0.1415064]
[1724376284535,0.3721396,60917.0,60916.0,0.1415064]
[1724376286158,0.29375305,60917.0,60916.0,0.1415064]
[1724376286517,0.3721396,60917.0,60916.0,0.1415064]
[1724376287726,0.3721396,60917.0,60916.0,0.0762064]
[1724376288137,0.3721396,60917.0,60916.0,0.0009064]
[1724376288540,0.51916404,60917.0,60916.0,0.0009064]
[1724376290811,0.3721396,60917.0,60916.0,0.0009064]
[1724376291019,0.51940709,60917.0,60916.0,0.0009064]
[1724376291266,0.59388513,60917.0,60916.0,0.0009064]
[1724376294930,0.51549858,60917.0,60916.0,0.0009064]
[1724376295109,0.59388513,60917.0,60916.0,0.0009064]
[1724376295673,0.59394791,60917.0,60916.0,0.0009064]
[1724376298886,0.59477191,60917.0,60916.0,0.0009064]
[1724376299112,0.44744164,60917.0,60916.0,0.0009064]
[1724376299723,0.72209444,60917.0,60916.0,0.0009064]
[1724376299930,0.74339864,60917.0,60916.0,0.0009064]
[1724376300204,0.603805,60913.0,60912.0,0.0009053]
[1724376300536,0.61785753,60913.0,60912.0,0.0009053]
[1724376300726,0.47668953,60913.0,60912.0,0.0009053]
[1724376301494,0.64236829,60913.0,60912.0,0.0009053]
[1724376301607,0.65636829,60913.0,60912.0,0.0009053]
[1724376301810,0.65466831,60913.0,60912.0,0.0009053]
[1724376302049,0.45368953,60913.0,60912.0,0.0009053]
[1724376303227,0.36427783,60913.0,60912.0,0.0009053]
[1724376303553,0.37827783,60913.0,60912.0,0.0009053]
[1724376304003,0.36427783,60913.0,60912.0,0.0009053]
[1724376304426,0.37827783,60913.0,60912.0,0.0009053]
[1724376304771,0.54225661,60913.0,60912.0,0.0009053]
[1724376305733,0.37827783,60913.0,60912.0,0.0009053]
[1724376306466,0.29989128,60913.0,60912.0,0.0009053]
[1724376306671,0.37827783,60913.0,60912.0,0.1439053]
[1724376306885,0.29989128,60913.0,60912.0,0.1439053]
[1724376307080,0.37827783,60913.0,60912.0,0.1439053]
[1724376307485,0.37527783,60913.0,60912.0,0.1439053]
[1724376308471,0.36127783,60913.0,60912.0,0.1439053]
[1724376309281,0.48929921,60913.0,60912.0,0.0784053]
[1724376310582,0.50029921,60913.0,60912.0,0.0784053]
[1724376310986,0.48629921,60913.0,60912.0,0.0784053]
[1724376311339,0.50029921,60913.0,60912.0,0.0784053]
[1724376313173,0.48629921,60913.0,60912.0,0.0784053]
[1724376313373,0.29689128,60913.0,60912.0,0.1432053]
[1724376313538,0.36127783,60913.0,60912.0,0.1432053]
[1724376314017,0.37527783,60913.0,60912.0,0.1432053]
[1724376315308,0.29689128,60913.0,60912.0,0.1432053]
[1724376315482,0.41948652,60913.0,60912.0,0.1432053]
[1724376315689,0.39497178,60913.0,60912.0,0.1432053]
[1724376315843,0.29689128,60913.0,60912.0,0.1432053]
[1724376316052,0.37045427,60913.0,60912.0,0.1432053]
[1724376317630,0.37049041,60913.0,60912.0,0.1432053]
[1724376317821,0.37048929,60913.0,60912.0,0.1432053]
[1724376318538,0.29689128,60913.0,60912.0,0.1432053]
[1724376319175,0.37047693,60913.0,60912.0,0.1432053]
[1724376320461,0.35647693,60913.0,60912.0,0.1432053]
[1724376320617,0.34247693,60913.0,60912.0,0.1432053]
[1724376320825,0.35647693,60913.0,60912.0,0.1432053]
[1724376321021,0.37047693,60913.0,60912.0,0.1432053]
[1724376321426,0.29689128,60913.0,60912.0,0.1432053]
[1724376321650,0.37047223,60913.0,60912.0,0.1432053]
[1724376321854,0.37047311,60913.0,60912.0,0.1432053]
[1724376322386,0.29200298,60913.0,60912.0,0.1432053]
[1724376322597,0.36558952,60913.0,60912.0,0.1432053]
[1724376323227,0.36641352,60913.0,60912.0,0.1432053]
[1724376323634,0.35241352,60913.0,60912.0,0.1432053]
[1724376324252,0.36641352,60913.0,60912.0,0.1432053]
[1724376324466,0.35241352,60913.0,60912.0,0.1432053]
[1724376324664,0.36641352,60913.0,60912.0,0.1432053]
[1724376325522,0.35241352,60913.0,60912.0,0.1432053]
[1724376325724,0.36641352,60913.0,60912.0,0.1432053]
[1724376328570,0.29282698,60913.0,60912.0,0.1432053]
[1724376329029,0.2924318,60913.0,60912.0,0.1432053]
[1724376329733,0.2784318,60913.0,60912.0,0.1432053]
[1724376329959,0.2924318,60913.0,60912.0,0.1432053]
[1724376330159,0.29218463,60913.0,60912.0,0.1432053]
[1724376330579,0.27818463,60913.0,60912.0,0.1432053]
[1724376332037,0.29218463,60913.0,60912.0,0.1432053]
[1724376332658,0.27818463,60913.0,60912.0,0.1432053]
[1724376332863,0.26418463,60913.0,60912.0,0.1432053]
[1724376333063,0.29218463,60913.0,60912.0,0.1432053]
[1724376333366,0.26418463,60913.0,60912.0,0.1432053]
[1724376333564,0.26418463,60913.0,60912.0,0.0784053]
[1724376333767,0.41488185,60913.0,60912.0,0.0009053]
[1724376333991,0.35339857,60913.0,60912.0,0.0009053]
[1724376334605,0.33939857,60913.0,60912.0,0.0009053]
[1724376334814,0.34039857,60913.0,60912.0,0.0009053]
[1724376335017,0.34239857,60913.0,60912.0,0.0009053]
[1724376335627,0.43859857,60913.0,60912.0,0.0009053]
[1724376335856,0.45259857,60913.0,60912.0,0.0009053]
[1724376336059,0.40538463,60913.0,60912.0,0.0009053]
[1724376336264,0.39138463,60913.0,60912.0,0.0009053]
[1724376336778,0.40538463,60913.0,60912.0,0.0009053]
[1724376354094,0.35758463,60913.0,60912.0,0.0009053]
[1724376354579,0.43597118,60913.0,60912.0,0.0009053]
[1724376354797,0.29518463,60913.0,60912.0,0.0009053]
[1724376354993,0.37357118,60913.0,60912.0,0.0009053]
[1724376355958,0.37357118,60913.0,60912.0,0.0787053]
[1724376365406,0.5207218,60913.0,60912.0,0.0787053]
[1724376365613,0.37357118,60913.0,60912.0,0.0787053]
[1724376367259,0.52072969,60913.0,60912.0,0.0787053]
[1724376367486,0.37357118,60913.0,60912.0,0.0787053]
[1724376367863,0.57076157,60913.0,60912.0,0.0009053]
[1724376368241,0.003,60901.0,60899.0,0.0796]
[1724376368445,0.24238953,60900.0,60899.0,0.0796]
[1724376368689,0.34238953,60900.0,60899.0,0.0796]
[1724376368899,0.26400298,60900.0,60899.0,0.1431]
[1724376369106,0.34238953,60900.0,60899.0,0.1431]
[1724376370057,0.35638953,60900.0,60899.0,0.1431]
[1724376371919,0.37038953,60900.0,60899.0,0.1431]
[1724376372133,0.29200298,60900.0,60899.0,0.1431]
[1724376372328,0.37038953,60900.0,60899.0,0.1431]
[1724376372845,0.49302497,60900.0,60891.0,0.0098233]
[1724376373012,0.16400298,60892.0,60890.0,0.0009064]
[1724376374484,0.21305562,60892.0,60890.0,0.0009064]
[1724376374689,0.22505562,60892.0,60890.0,0.0009064]
[1724376375946,0.23905562,60892.0,60891.0,0.141]
[1724376376172,0.33905562,60892.0,60891.0,0.141]
[1724376376877,0.32705562,60892.0,60891.0,0.141]
[1724376377143,0.31305562,60892.0,60891.0,0.141]
[1724376377367,0.32505562,60892.0,60891.0,0.141]
[1724376377617,0.32506128,60892.0,60891.0,0.141]
[1724376378333,0.33906128,60892.0,60891.0,0.141]
[1724376378579,0.29000298,60892.0,60891.0,0.141]
[1724376382377,0.29000298,60892.0,60891.0,0.1419064]
[1724376382732,0.38813654,60892.0,60891.0,0.1419064]
[1724376383374,0.29000298,60892.0,60891.0,0.1419064]
[1724376389020,0.38781914,60892.0,60891.0,0.1419064]
[1724376389436,0.38781914,60892.0,60891.0,0.3061334]
[1724376389610,0.38781914,60892.0,60891.0,0.1419064]
[1724376392741,0.38788341,60892.0,60891.0,0.1419064]
[1724376395272,0.38870741,60892.0,60891.0,0.1419064]
[1724376397560,0.38872217,60892.0,60891.0,0.1419064]
[1724376400252,0.46710872,60892.0,60891.0,0.1419064]
[1724376400450,0.36896902,60892.0,60891.0,0.1419064]
[1724376403633,0.49164855,60892.0,60891.0,0.1419064]
[1724376404512,0.51741148,60892.0,60891.0,0.1419064]
[1724376407145,0.51742808,60892.0,60891.0,0.1419064]
[1724376410741,0.39473195,60892.0,60891.0,0.1419064]
[1724376410945,0.39473195,60892.0,60891.0,0.0766064]
[1724376412347,0.39773195,60892.0,60891.0,0.0009064]
[1724376412576,0.60681534,60892.0,60891.0,0.0009064]
[1724376412790,0.39473195,60892.0,60891.0,0.0009064]
[1724376413025,0.46362816,60892.0,60891.0,0.0628064]
[1724376413230,0.3163454,60892.0,60891.0,0.1448064]
[1724376415331,0.43915642,60892.0,60891.0,0.1448064]
[1724376415536,0.39473195,60892.0,60891.0,0.0009064]
[1724376416593,0.38273195,60892.0,60891.0,0.0009064]
[1724376417442,0.36873195,60892.0,60891.0,0.0009064]
[1724376417659,0.44869826,60892.0,60891.0,0.0009064]
[1724376418055,0.45769826,60892.0,60891.0,0.0009064]
[1724376418302,0.44369826,60892.0,60891.0,0.0009064]
[1724376418459,0.37773195,60892.0,60891.0,0.0009064]
[1724376418655,0.5380631,60892.0,60891.0,0.0009064]
[1724376420605,0.53802497,60892.0,60891.0,0.0009064]
[1724376420821,1.07972497,60892.0,60891.0,0.0009064]
[1724376421020,0.60133842,60892.0,60891.0,0.0009064]
[1724376421222,0.53243195,60892.0,60891.0,0.0009064]
[1724376421642,0.51943195,60892.0,60891.0,0.0009064]
[1724376421839,0.51043195,60892.0,60891.0,0.0009064]
[1724376422050,0.2903454,60892.0,60891.0,0.0009064]
[1724376422257,0.3043454,60892.0,60891.0,0.0009064]
[1724376422692,0.3183454,60892.0,60891.0,0.0009064]
[1724376424084,0.3183454,60892.0,60891.0,0.1449064]
[1724376434583,0.3183454,60892.0,60891.0,0.0814064]
[1724376434772,0.39673195,60892.0,60891.0,0.1436064]
[1724376435004,0.39673195,60892.0,60891.0,0.0819064]
[1724376435317,0.3183454,60892.0,60891.0,0.0819064]
[1724376435526,0.3173454,60892.0,60891.0,0.0819064]
[1724376438292,0.3173454,60892.0,60891.0,0.0009064]
[1724376438499,0.39573195,60892.0,60891.0,0.0009064]
[1724376439321,0.3173454,60892.0,60891.0,0.0009064]
[1724376443572,0.3173454,60892.0,60891.0,0.0810064]
[1724376444390,0.3173454,60892.0,60891.0,0.0009064]
[1724376444877,0.39573195,60892.0,60891.0,0.0009064]
[1724376448089,0.54322072,60892.0,60891.0,0.0009064]
[1724376448292,0.39573195,60892.0,60891.0,0.0009064]
[1724376448624,0.3173454,60892.0,60891.0,0.0621064]
[1724376450860,0.3173454,60892.0,60891.0,0.1391064]
[1724376453610,0.3173454,60892.0,60891.0,0.3033334]
[1724376455184,0.3173454,60892.0,60891.0,0.1391064]
[1724376462174,0.3173454,60892.0,60891.0,0.0779064]
[1724376462851,0.3173454,60892.0,60891.0,0.0009064]
[1724376463054,0.46482605,60892.0,60891.0,0.0009064]
[1724376463257,0.45082605,60892.0,60891.0,0.0009064]
[1724376463495,0.43682605,60892.0,60891.0,0.0009064]
[1724376463695,0.46382605,60892.0,60891.0,0.0009064]
[1724376467170,0.46383436,60892.0,60889.0,0.0058768]
[1724376467372,0.16400298,60890.0,60889.0,0.0058768]
[1724376467690,0.26400298,60890.0,60889.0,0.0058768]
[1724376468174,0.26400298,60890.0,60887.0,0.009064]
[1724376468405,0.16400298,60888.0,60887.0,0.009064]
[1724376470849,0.17500298,60888.0,60887.0,0.009064]
[1724376471249,0.18900298,60888.0,60887.0,0.009064]
[1724376472850,0.18860766,60888.0,60887.0,0.009064]
[1724376478357,0.18860766,60888.0,60887.0,0.086564]
[1724376480284,0.39630312,60888.0,60887.0,0.009064]
[1724376480482,0.49930312,60888.0,60887.0,0.009064]
[1724376481343,0.48530312,60888.0,60887.0,0.009064]
[1724376481840,0.49930312,60888.0,60887.0,0.009064]
[1724376482044,0.68653812,60888.0,60887.0,0.009064]
[1724376482176,0.67253812,60888.0,60887.0,0.009064]
[1724376482386,1.00100912,60888.0,60887.0,0.009064]
[1724376482600,0.99000912,60888.0,60887.0,0.009064]
[1724376482825,1.00400912,60888.0,60887.0,0.009064]
[1724376483225,0.99000912,60888.0,60887.0,0.009064]
[1724376483480,1.00400912,60888.0,60887.0,0.009064]
[1724376483840,1.31848012,60888.0,60887.0,0.009064]
[1724376484090,1.33248012,60888.0,60887.0,0.009064]
[1724376484340,1.34648012,60888.0,60887.0,0.009064]
[1724376484755,1.33248012,60888.0,60887.0,0.009064]
[1724376485667,1.31848012,60888.0,60887.0,0.009064]
[1724376485783,1.33248012,60888.0,60887.0,0.009064]
[1724376486234,1.33248012,60888.0,60851.0,0.009264]
[1724376486235,0.5034,60856.0,60851.0,0.009264]
[1724376486440,0.07838655,60852.0,60851.0,0.009264]
[1724376486608,0.538099,60852.0,60851.0,0.009264]
[1724376486825,0.72456969,60852.0,60851.0,0.009264]
[1724376487040,0.58480159,60852.0,60851.0,0.009264]
[1724376487265,0.73357069,60852.0,60851.0,0.009264]
[1724376487470,0.65518414,60852.0,60851.0,0.009264]
[1724376487673,0.8801608,60852.0,60851.0,0.009264]
[1724376488158,0.73357069,60852.0,60851.0,0.009264]
[1724376488392,0.91190369,60852.0,60851.0,0.009264]
[1724376488554,0.75246407,60852.0,60851.0,0.009264]
[1724376488777,0.91679707,60852.0,60851.0,0.009264]
[1724376488969,0.93079707,60852.0,60851.0,0.009264]
[1724376489174,1.05271965,60852.0,60851.0,0.009264]
[1724376489728,1.03871965,60852.0,60851.0,0.009264]
[1724376489950,0.9603331,60852.0,60851.0,0.009264]
[1724376490324,0.75246407,60852.0,60851.0,0.009264]
[1724376490529,0.85655804,60852.0,60851.0,0.009264]
[1724376490742,0.87055804,60852.0,60851.0,0.009264]
[1724376491072,0.55967752,60852.0,60851.0,0.009264]
[1724376491251,0.54767752,60852.0,60851.0,0.009264]
[1724376492059,0.53367752,60852.0,60851.0,0.009264]
[1724376492896,0.64627752,60852.0,60851.0,0.009264]
[1724376493300,0.63227752,60852.0,60851.0,0.009264]
[1724376493527,0.66027752,60852.0,60851.0,0.009264]
[1724376493879,0.8242805,60852.0,60851.0,0.009264]
[1724376494109,0.9457895,60852.0,60851.0,0.009264]
[1724376496498,0.9177895,60852.0,60851.0,0.009264]
[1724376496720,0.9317895,60852.0,60851.0,0.009264]
[1724376497447,0.9457895,60852.0,60851.0,0.009264]
[1724376498385,1.1101225,60852.0,60851.0,0.009264]
[1724376498869,1.1715225,60852.0,60851.0,0.009264]
[1724376499591,1.1435225,60852.0,60851.0,0.009264]
[1724376499837,0.9931895,60852.0,60851.0,0.009264]
[1724376500111,1.0071895,60852.0,60851.0,0.009264]
[1724376500332,0.9931895,60852.0,60851.0,0.009264]
[1724376500569,0.9791895,60852.0,60851.0,0.009264]
[1724376500808,1.0071895,60852.0,60851.0,0.009264]
[1724376501245,1.1715225,60852.0,60851.0,0.009264]
[1724376501728,1.0071895,60852.0,60851.0,0.009264]
[1724376501951,0.8856805,60852.0,60851.0,0.009264]
[1724376502212,0.7486805,60852.0,60851.0,0.009264]
[1724376502946,0.7346805,60852.0,60851.0,0.009264]
[1724376503174,0.7206805,60852.0,60851.0,0.009264]
[1724376503400,0.7346805,60852.0,60851.0,0.009264]
[1724376503663,0.8590166,60852.0,60851.0,0.009264]
[1724376504643,1.0233496,60852.0,60851.0,0.009264]
[1724376504880,0.8590166,60852.0,60851.0,0.009264]
[1724376506323,0.3226805,60852.0,60851.0,0.158264]
[1724376507390,0.2946805,60852.0,60851.0,0.158264]
[1724376507676,0.3226805,60852.0,60851.0,0.158264]
[1724376508890,0.2946805,60852.0,60851.0,0.158264]
[1724376509136,0.3086805,60852.0,60851.0,0.158264]
[1724376509381,0.3226805,60852.0,60851.0,0.158264]
[1724376509614,0.3086805,60852.0,60851.0,0.158264]
[1724376510092,0.3226805,60852.0,60851.0,0.158264]
[1724376510320,0.3086805,60852.0,60851.0,0.158264]
[1724376510826,0.30843857,60852.0,60851.0,0.158264]
[1724376512082,0.20354519,60852.0,60851.0,0.158264]
[1724376512549,0.21754519,60852.0,60851.0,0.158264]